bitfinex-derivatives/quotes_ETHF0:USTF0_20250621
["timestamp","ask_amount","ask_price","bid_price","bid_amount"]
[1750514115586,0.82618,2420.4,2420.2,2.0199]
[1750514115788,0.82618,2420.4,2420.3,0.82619]
[1750514116093,3.2078,2420.4,2420.0,7.998]
[1750514116388,2.83701,2420.3,2420.2,0.82622]
[1750514116587,3.2078,2420.4,2420.3,0.82619]
[1750514116789,3.2078,2420.8,2420.7,0.82605]
[1750514116993,3.2078,2421.1,2421.0,0.82595]
[1750514117698,3.2078,2421.4,2421.3,0.82585]
[1750514118894,0.82571,2421.7,2421.6,0.82574]
[1750514119101,0.82571,2421.7,2421.5,0.82576]
[1750514119394,4.0335,2421.8,2421.6,0.82575]
[1750514119901,2.90257,2421.9,2421.7,0.82571]
[1750514120501,0.82568,2421.8,2421.2,4.5504]
[1750514120697,0.82568,2421.8,2421.5,0.82575]
[1750514120997,0.82568,2421.8,2421.6,0.82574]
[1750514121199,0.82571,2421.7,2421.5,0.82576]
[1750514122096,0.8257,2421.8,2421.6,0.82575]
[1750514123093,8.39318152,2422.1,2421.4,1.2892]
[1750514123295,8.39318152,2422.1,2421.6,0.82572]
[1750514123296,0.82568,2421.8,2421.6,0.82572]
[1750514123893,0.82568,2421.8,2421.4,1.2892]
[1750514123894,3.2078,2422.1,2421.4,1.2892]
[1750514124100,4.0335,2421.8,2421.6,0.82574]
[1750514124798,3.2078,2421.8,2421.7,0.82571]
[1750514125193,4.0334,2422.1,2421.9,0.82564]
[1750514125507,0.82553,2422.3,2422.1,0.82555]
[1750514125694,3.8625,2422.4,2422.3,0.82551]
[1750514126000,0.82551,2422.3,2422.2,0.82553]
[1750514126197,3.2078,2422.4,2422.0,1.9555]
[1750514126395,3.2078,2422.4,2422.3,0.82551]
[1750514127203,4.0333,2422.4,2422.2,0.82552]
[1750514128106,3.2078,2422.4,2422.3,0.82551]
[1750514129102,4.03329,2422.4,2422.2,0.82551]
[1750514129407,4.03329,2422.4,2422.3,0.82551]
[1750514130701,0.82568,2421.8,2421.7,1.48279]
[1750514130905,2.06386,2422.2,2421.8,0.82568]
[1750514130906,0.82566,2421.9,2421.8,0.82568]
[1750514131103,0.82562,2422.0,2421.9,0.82563]
[1750514131313,0.82562,2422.0,2421.9,8.75162]
[1750514131514,0.82562,2422.0,2421.9,7.926]
[1750514131719,0.82559,2422.1,2422.0,0.8256]
[1750514132010,0.82563,2422.0,2421.7,0.6571]
[1750514132210,0.8257,2421.8,2421.5,0.6879]
[1750514132509,0.8257,2421.8,2421.6,8.75172]
[1750514132907,0.8257,2421.8,2421.7,0.82571]
[1750514133213,0.82567,2421.9,2421.8,0.82568]
[1750514133909,0.82561,2422.0,2421.9,0.82563]
[1750514134309,0.82561,2422.0,2421.9,0.82564]
[1750514134310,0.82562,2422.0,2421.9,0.82564]
[1750514135316,0.82558,2422.1,2422.0,0.82559]
[1750514135823,0.82557,2422.2,2422.1,0.82557]
[1750514136010,0.82558,2422.1,2422.0,0.82559]
[1750514136326,0.82557,2422.2,2422.1,0.82557]
[1750514137031,0.82553,2422.3,2422.2,0.82553]
[1750514137327,4.0333,2422.4,2422.2,0.82553]
[1750514137524,3.2078,2422.4,2422.3,0.82551]
[1750514137728,4.03327,2422.4,2422.3,0.82551]
[1750514138423,3.2078,2422.4,2422.3,0.82551]
[1750514140020,0.82558,2422.1,2422.0,3.2078]
[1750514140228,3.2078,2422.4,2422.0,7.926]
[1750514140430,0.82552,2422.3,2422.2,0.82552]
[1750514141126,4.03328,2422.4,2422.3,0.82551]
[1750514141527,3.2078,2422.4,2422.3,0.82551]
[1750514142632,3.2078,2422.4,2422.3,2.19271]
[1750514144434,0.82541,2422.6,2422.5,0.82542]
[1750514146219,0.82544,2422.5,2422.4,8.75045]
[1750514146732,0.82543,2422.6,2422.5,0.82543]
[1750514148335,0.82551,2422.3,2422.2,1.5189]
[1750514148529,0.82549,2422.4,2422.3,0.82549]
[1750514149036,0.82546,2422.5,2422.4,0.82545]
[1750514150337,0.82544,2422.5,2422.4,0.82545]
[1750514150534,0.6669,2422.7,2422.2,8.6184]
[1750514150721,0.82547,2422.5,2422.4,0.82546]
[1750514150927,0.82551,2422.3,2422.2,1.51893]
[1750514151232,0.82551,2422.3,2422.2,9.44393]
[1750514152642,4.03331,2422.3,2422.2,8.6184]
[1750514152939,0.82551,2422.3,2422.2,8.6184]
[1750514154438,0.82551,2422.3,2422.2,9.44394]
[1750514155136,3.2078,2422.3,2421.9,0.6774]
[1750514155339,1.9623,2422.2,2421.8,7.849]
[1750514155539,0.82559,2422.1,2422.0,0.82559]
[1750514156027,0.82562,2422.0,2421.9,0.82562]
[1750514156229,0.82562,2422.0,2421.8,7.849]
[1750514156230,0.8256,2422.1,2422.0,0.8256]
[1750514157233,1.9623,2422.2,2421.7,3.2078]
[1750514157432,0.82571,2421.7,2421.6,0.655]
[1750514158934,0.82571,2421.7,2421.6,1.48075]
[1750514159131,4.5133,2422.0,2421.6,1.48075]
[1750514159436,0.82571,2421.7,2421.6,0.655]
[1750514160038,0.82578,2421.5,2421.4,4.0336]
[1750514160633,0.82577,2421.6,2421.5,0.82578]
[1750514161840,0.82569,2421.8,2421.7,0.8257]
[1750514162045,0.82569,2421.8,2421.6,0.82573]
[1750514163048,0.82575,2421.6,2421.5,0.82577]
[1750514163439,0.82573,2421.7,2421.6,0.82574]
[1750514164045,2.06438,2421.6,2420.6,9.91521]
[1750514164244,3.2078,2421.2,2420.8,0.6809]
[1750514164444,3.2078,2421.2,2421.0,0.82592]
[1750514164642,4.0337,2421.2,2421.0,0.82592]
[1750514164943,0.82582,2421.4,2420.9,2.06497]
[1750514165143,3.2078,2421.5,2421.3,0.82585]
[1750514165445,0.82582,2421.4,2421.2,0.82587]
[1750514165653,0.82585,2421.3,2421.2,0.82587]
[1750514166043,0.82591,2421.2,2421.0,8.67593]
[1750514166244,3.2078,2421.2,2420.9,8.67597]
[1750514166540,0.82595,2421.0,2420.9,8.67597]
[1750514167139,0.82593,2421.1,2421.0,0.82595]
[1750514167446,0.82591,2421.2,2421.1,0.82592]
[1750514168048,0.82586,2421.3,2420.9,7.85]
[1750514168343,0.82587,2421.3,2421.2,0.82588]
[1750514168535,3.2078,2421.5,2420.9,9.1959]
[1750514168741,4.0336,2421.5,2421.3,0.82583]
[1750514169150,4.0336,2421.5,2421.3,0.82582]
[1750514169645,0.82582,2421.4,2421.3,0.82582]
[1750514170046,4.0336,2421.5,2421.3,0.82582]
[1750514170351,4.03358,2421.5,2421.4,0.82582]
[1750514170651,3.2078,2421.5,2421.4,0.82582]
[1750514171546,0.82558,2422.2,2422.1,0.82558]
[1750514171742,0.82554,2422.2,2422.0,0.8256]
[1750514171939,0.7083,2422.3,2421.8,7.851]
[1750514172144,3.2078,2422.5,2422.3,0.82549]
[1750514172346,0.82549,2422.4,2422.2,0.82552]
[1750514172544,0.82549,2422.4,2422.3,0.82551]
[1750514173053,0.82549,2422.4,2422.2,0.82552]
[1750514173545,4.03327,2422.5,2422.3,0.82551]
[1750514174540,3.2078,2422.5,2422.3,0.82551]
[1750514175245,3.2078,2422.5,2422.4,0.82547]
[1750514175441,4.03324,2422.5,2422.3,0.82549]
[1750514175647,4.03324,2422.5,2422.4,0.82547]
[1750514176141,0.82544,2422.5,2422.4,0.82547]
[1750514177254,0.82543,2422.6,2422.4,0.82547]
[1750514177454,0.82544,2422.5,2422.4,0.82547]
[1750514177749,5.2257,2422.8,2422.2,7.85]
[1750514177955,0.82545,2422.5,2422.4,0.82546]
[1750514178357,0.82543,2422.6,2422.5,0.82544]
[1750514178752,0.82543,2422.6,2422.4,0.82545]
[1750514179056,0.82551,2422.3,2422.0,5.2589]
[1750514179257,0.82551,2422.3,2422.1,7.85]
[1750514179460,0.82549,2422.4,2422.3,0.8255]
[1750514181361,0.82549,2422.4,2422.3,7.85]
[1750514181759,0.82549,2422.4,2422.3,8.67551]
[1750514182861,0.82557,2422.2,2422.1,0.82556]
[1750514183053,0.82557,2422.2,2422.1,8.67556]
[1750514183248,0.82557,2422.2,2422.1,7.85]
[1750514183654,0.82558,2422.1,2422.0,0.6863]
[1750514183855,0.82558,2422.1,2421.7,3.2078]
[1750514183856,3.2078,2422.2,2421.7,11.8835]
[1750514184051,0.82567,2421.9,2421.8,0.82567]
[1750514186660,1.35,2422.3,2421.7,11.0578]
[1750514186855,3.2078,2422.2,2421.8,1.3239]
[1750514187158,0.82568,2421.8,2421.7,11.8025]
[1750514187857,0.82567,2421.9,2421.8,0.82567]
[1750514188860,2.58974469,2422.0,2421.6,0.6483]
[1750514189066,0.82571,2421.7,2421.6,9.24404]
[1750514189266,0.82569,2421.8,2421.7,0.82569]
[1750514190266,0.82571,2421.7,2421.6,0.82572]
[1750514191367,3.2078,2421.9,2421.4,0.6468]
[1750514191368,0.8257,2421.8,2421.7,0.82571]
[1750514193666,3.2078,2421.9,2421.8,0.82568]
[1750514193865,3.2078,2421.9,2421.8,8.59568]
[1750514194371,0.82564,2421.9,2421.8,8.59568]
[1750514194870,7.86158469,2422.0,2421.7,7.77]
[1750514195071,0.82568,2421.8,2421.7,7.77]
[1750514195264,0.82568,2421.8,2420.9,3.2078]
[1750514195265,2.06429,2421.7,2420.9,3.2078]
[1750514195569,2.06429,2421.7,2420.8,1.3901]
[1750514195570,0.82599,2420.9,2420.8,1.3901]
[1750514195871,0.82609,2420.6,2420.5,3.2078]
[1750514196074,4.03387,2420.7,2420.5,0.82611]
[1750514196276,4.03388,2420.7,2420.5,0.82611]
[1750514196468,3.82603044,2420.6,2419.5,3.2078]
[1750514196669,0.82631,2420.0,2419.5,3.2078]
[1750514196977,0.82636,2419.8,2419.6,2.11121]
[1750514197372,4.03411,2420.0,2419.6,1.2848]
[1750514197567,4.03411,2420.0,2419.7,0.82638]
[1750514197873,0.82633,2419.9,2419.6,1.2848]
[1750514198274,4.03411,2420.0,2419.6,1.2848]
[1750514198474,3.2078,2420.3,2419.7,3.2078]
[1750514198674,0.82606,2420.7,2420.5,0.82612]
[1750514198869,0.8261,2420.6,2420.3,0.82617]
[1750514199070,0.82603,2420.8,2420.5,0.8261]
[1750514199772,0.82612,2420.5,2420.4,0.6646]
[1750514199975,0.82621,2420.3,2419.9,1.3222]
[1750514200174,4.03401,2420.3,2420.0,0.6864]
[1750514200581,3.2078,2420.3,2420.1,0.82624]
[1750514201177,3.2078,2420.3,2420.2,0.82623]
[1750514201378,3.2078,2420.3,2420.1,0.82624]
[1750514201578,3.2078,2420.3,2420.0,0.6864]
[1750514201781,3.2078,2420.3,2420.1,0.82624]
[1750514202288,3.2078,2420.3,2420.1,0.82626]
[1750514202483,4.03399,2420.3,2420.1,0.82626]
[1750514202677,3.2078,2420.3,2420.1,0.82626]
[1750514203080,0.82618,2420.4,2420.2,0.82622]
[1750514204385,1.3941,2420.5,2420.1,0.82625]
[1750514204386,0.82619,2420.3,2420.1,0.82625]
[1750514204575,0.82618,2420.4,2420.2,0.82622]
[1750514204779,0.82621,2420.3,2420.1,0.82624]
[1750514205087,0.82622,2420.2,2420.1,0.82626]
[1750514205286,4.03401,2420.3,2420.1,0.82626]
[1750514205687,3.2078,2420.3,2420.2,0.82622]
[1750514206179,3.2078,2420.3,2420.2,8.60022]
[1750514208182,0.82612,2420.5,2420.3,0.82616]
[1750514208382,0.82612,2420.5,2420.4,0.7037]
[1750514208685,0.82612,2420.5,2420.4,1.52986]
[1750514209186,0.82612,2420.5,2420.4,0.7037]
[1750514209388,0.82612,2420.5,2420.4,1.52986]
[1750514210182,0.82612,2420.6,2420.5,0.82611]
[1750514210386,0.82609,2420.6,2420.5,2.068]
[1750514210587,0.82609,2420.6,2420.5,2.89412]
[1750514211385,4.03388,2420.7,2420.6,0.82609]
[1750514212588,3.2078,2420.7,2420.6,0.82609]
[1750514213383,4.03385,2420.7,2420.6,0.82609]
[1750514213583,0.82609,2420.6,2420.5,1.5171]
[1750514214989,0.82609,2420.6,2420.5,0.691]
[1750514215390,0.82609,2420.6,2420.5,1.51712]
[1750514216390,4.03388,2420.7,2420.6,0.82609]
[1750514216894,0.82609,2420.6,2420.5,2.9349]
[1750514217690,0.82609,2420.6,2420.5,8.5291]
[1750514217899,0.82609,2420.6,2420.5,7.703]
[1750514218191,0.82609,2420.6,2420.5,8.52912]
[1750514218392,0.82609,2420.6,2420.5,7.703]
[1750514218593,0.82612,2420.5,2420.4,8.4077]
[1750514219298,0.82619,2420.3,2420.2,8.4142]
[1750514220502,0.82619,2420.3,2420.2,9.24041]
[1750514220696,0.82619,2420.3,2420.2,8.4142]
[1750514221202,0.82619,2420.3,2420.2,9.24043]
[1750514221397,4.03398,2420.4,2420.3,0.82619]
[1750514222494,3.2078,2420.4,2420.3,0.82619]
[1750514222704,4.03386,2420.7,2420.3,0.82619]
[1750514222894,3.2078,2420.7,2420.6,0.82609]
[1750514223300,0.82609,2420.6,2420.5,0.82611]
[1750514223500,4.03388,2420.7,2420.5,0.82611]
[1750514223702,0.82609,2420.6,2420.5,0.82611]
[1750514223902,4.03387,2420.7,2420.6,0.82609]
[1750514224098,3.2078,2420.7,2420.6,0.82609]
[1750514224300,3.2078,2421.1,2421.0,0.82595]
[1750514226201,0.82592,2421.1,2421.0,0.82595]
[1750514226408,0.82595,2421.0,2420.9,0.82596]
[1750514226802,3.2078,2421.1,2420.7,1.373]
[1750514227001,0.826,2420.9,2420.8,0.82601]
[1750514227202,1.47738,2421.0,2420.8,0.82601]
[1750514227511,1.47738,2421.0,2420.9,0.82599]
[1750514228306,1.47735,2421.0,2420.9,0.82599]
[1750514228807,0.82599,2420.9,2420.8,0.826]
[1750514229699,0.82599,2420.9,2420.8,0.82599]
[1750514230303,0.82599,2420.9,2420.8,0.82602]
[1750514233706,1.47737,2421.0,2420.9,0.82599]
[1750514234102,0.826,2420.9,2420.8,0.826]
[1750514234606,3.2078,2421.5,2420.8,2.06506]
[1750514234806,4.03361,2421.5,2421.4,0.82582]
[1750514235012,0.82583,2421.4,2421.3,0.82582]
[1750514235405,3.2078,2421.5,2421.3,0.82582]
[1750514235603,3.2078,2421.5,2421.4,0.82582]
[1750514236209,2.75467,2422.0,2421.3,8.3806]
[1750514236406,0.82576,2421.6,2421.5,0.82577]
[1750514236605,0.82574,2421.7,2421.6,0.82574]
[1750514236811,0.82576,2421.6,2421.5,0.82576]
[1750514237914,5.27201,2421.8,2421.3,8.3806]
[1750514238114,0.82588,2421.2,2421.1,1.4971]
[1750514238305,0.82586,2421.3,2421.2,0.82586]
[1750514239507,0.82583,2421.4,2421.3,0.82583]
[1750514241413,0.82576,2421.6,2421.5,0.82576]
[1750514243014,0.82573,2421.7,2421.6,0.82572]
[1750514243715,4.0335,2421.8,2421.7,0.82571]
[1750514244512,0.82573,2421.7,2421.6,0.82573]
[1750514244912,4.0335,2421.8,2421.7,0.82571]
[1750514245225,4.0335,2421.8,2421.6,0.82573]
[1750514245226,0.82573,2421.7,2421.6,0.82573]
[1750514245519,0.82573,2421.7,2421.6,0.82575]
[1750514246419,4.5899,2421.8,2421.4,8.9908]
[1750514246623,0.82573,2421.7,2421.6,0.82572]
[1750514247420,5.79845157,2421.8,2421.4,7.701]
[1750514247622,0.82578,2421.5,2421.4,8.52679]
[1750514248315,0.82578,2421.5,2421.4,0.82579]
[1750514248515,0.82582,2421.4,2421.3,0.82584]
[1750514248718,3.41647157,2421.4,2421.3,0.82584]
[1750514248919,2.59065157,2421.4,2421.0,11.4929]
[1750514249220,3.41657157,2421.1,2421.0,11.4929]
[1750514249618,3.41657157,2421.1,2421.0,12.31885]
[1750514249813,0.82592,2421.1,2421.0,1.48205]
[1750514250821,0.82591,2421.2,2421.1,0.82592]
[1750514251019,1.9767,2421.3,2421.0,0.6561]
[1750514251219,3.2078,2421.2,2421.1,0.8259]
[1750514252120,4.03368,2421.2,2421.1,0.8259]
[1750514252314,0.82588,2421.2,2421.1,0.8259]
[1750514252520,1.47787,2421.3,2421.2,0.82588]
[1750514254823,0.82584,2421.4,2421.3,0.82585]
[1750514255725,3.2078,2421.5,2421.4,0.82582]
[1750514255915,0.82583,2421.4,2421.3,0.82583]
[1750514256725,0.82585,2421.3,2421.2,1.49526]
[1750514257324,0.82588,2421.2,2421.1,0.82589]
[1750514257523,0.82587,2421.3,2421.2,0.82587]
[1750514259326,0.82589,2421.2,2421.1,0.8259]
[1750514261029,0.82587,2421.3,2421.2,0.82588]
[1750514263028,0.82583,2421.4,2421.3,0.82582]
[1750514263728,4.0336,2421.5,2421.4,0.82582]
[1750514264519,0.82583,2421.4,2421.3,0.82583]
[1750514265925,0.82586,2421.3,2421.2,0.82586]
[1750514266331,0.82588,2421.2,2421.1,2.1422]
[1750514266524,0.82587,2421.3,2421.2,0.82587]
[1750514266925,0.82584,2421.4,2421.3,0.82584]
[1750514268526,0.82587,2421.3,2421.2,0.82586]
[1750514268927,0.82588,2421.2,2421.1,9.77119]
[1750514269334,0.82588,2421.2,2421.1,9.77122]
[1750514269538,3.2078,2421.2,2421.1,0.82592]
[1750514269828,4.03371,2421.2,2421.1,0.8259]
[1750514270230,3.2078,2421.2,2421.0,0.6929]
[1750514270426,0.82595,2421.0,2420.9,0.6509]
[1750514270634,0.82595,2421.0,2420.9,1.47689]
[1750514270836,0.82595,2421.0,2420.9,0.6509]
[1750514271740,4.0954957,2421.1,2421.0,0.82595]
[1750514272237,0.82595,2421.0,2420.9,1.47686]
[1750514273231,0.6773,2421.1,2421.0,0.82595]
[1750514273432,4.03369,2421.2,2421.1,0.82592]
[1750514273834,0.82594,2421.1,2421.0,0.82594]
[1750514274033,0.82595,2421.1,2421.0,0.82594]
[1750514275637,3.2078,2421.2,2421.1,0.82592]
[1750514276631,14.8250557,2421.8,2421.1,2.5922557]
[1750514276934,0.8258,2421.5,2421.4,0.82581]
[1750514278034,0.82578,2421.5,2421.4,0.82578]
[1750514278525,0.82582,2421.4,2421.3,1.52902]
[1750514278930,0.82585,2421.3,2421.2,8.38086]
[1750514279835,0.82585,2421.3,2421.2,7.555]
[1750514280037,2.5922557,2421.4,2421.0,0.7032]
[1750514280237,0.8259,2421.2,2421.1,0.8259]
[1750514280627,1.50358,2421.3,2421.2,0.82588]
[1750514281134,0.6777,2421.3,2421.2,0.82588]
[1750514281440,0.82583,2421.4,2421.3,0.82585]
[1750514282641,0.8258,2421.5,2421.4,0.8258]
[1750514282836,0.82578,2421.5,2421.4,0.8258]
[1750514283343,0.82583,2421.4,2421.3,0.82583]
[1750514283647,0.8258,2421.5,2421.4,0.8258]
[1750514283836,0.82583,2421.4,2421.3,0.82583]
[1750514287745,0.8258,2421.5,2421.4,0.82579]
[1750514287946,0.82587,2421.3,2421.2,0.82588]
[1750514288648,0.82584,2421.4,2421.3,0.82583]
[1750514289653,0.82587,2421.3,2421.2,0.82586]
[1750514290549,0.82588,2421.2,2421.1,3.2078]
[1750514291051,0.82588,2421.2,2421.1,4.03372]
[1750514291645,0.82587,2421.3,2421.2,0.82586]
[1750514292745,0.82592,2421.1,2421.0,0.7032]
[1750514293753,0.82592,2421.1,2421.0,0.82595]
[1750514294551,0.82595,2421.0,2420.9,7.555]
[1750514295148,0.82599,2420.9,2420.8,3.2078]
[1750514295356,4.7730457,2420.9,2420.8,3.2078]
[1750514295654,3.4182457,2420.9,2420.8,3.2078]
[1750514296257,0.82613,2420.5,2420.4,3.2078]
[1750514297056,0.82613,2420.5,2420.4,4.03396]
[1750514297356,0.82611,2420.6,2420.5,0.82612]
[1750514297558,1.49197,2421.0,2420.4,5.8000557]
[1750514297752,0.82595,2421.0,2420.9,0.82596]
[1750514298149,3.2078,2421.2,2420.8,1.3651]
[1750514298150,0.82593,2421.1,2420.8,1.3651]
[1750514298354,0.82593,2421.1,2420.9,0.82595]
[1750514298954,0.82593,2421.1,2421.0,0.82595]
[1750514300055,3.2078,2421.2,2420.7,3.2078]
[1750514300261,0.82601,2420.9,2420.8,0.82601]
[1750514301062,0.826,2420.9,2420.8,0.82601]
[1750514301273,2.5922557,2420.9,2420.4,10.7638]
[1750514301569,0.82612,2420.5,2420.4,10.7638]
[1750514302268,0.82612,2420.5,2420.4,11.58996]
[1750514302668,0.82612,2420.5,2420.4,10.7638]
[1750514303472,0.82611,2420.6,2420.5,0.82611]
[1750514304075,0.6742,2420.8,2420.6,0.82606]
[1750514304376,0.82609,2420.6,2420.5,0.8261]
[1750514305077,0.82609,2420.6,2420.4,11.58993]
[1750514305264,0.82612,2420.5,2420.4,11.58993]
[1750514305771,0.82612,2420.5,2420.4,4.03393]
[1750514305975,0.82612,2420.5,2420.4,3.2078]
[1750514306273,0.82612,2420.5,2420.4,4.03396]
[1750514306672,3.4183757,2420.5,2420.4,3.2078]
[1750514307374,0.82626,2420.1,2420.0,3.2078]
[1750514307775,3.9221557,2420.4,2420.1,0.82625]
[1750514307776,0.82625,2420.2,2420.1,0.82625]
[1750514308075,0.82626,2420.1,2420.0,4.03409]
[1750514308475,0.82626,2420.1,2420.0,0.82629]
[1750514308676,0.82629,2420.0,2419.9,2.1609]
[1750514308879,0.82628,2420.1,2420.0,0.82628]
[1750514309080,4.03404,2420.2,2420.1,0.82626]
[1750514309371,3.2078,2420.2,2420.1,0.82626]
[1750514309571,4.03403,2420.2,2420.1,0.82626]
[1750514309771,0.82627,2420.1,2420.0,0.82627]
[1750514310174,0.82629,2420.0,2419.9,2.1609]
[1750514310383,0.82628,2420.1,2420.0,0.82629]
[1750514310576,5.43775,2420.2,2420.1,0.82626]
[1750514310773,3.2078,2420.2,2420.1,0.82626]
[1750514311268,2.06504,2420.9,2420.1,0.82626]
[1750514311269,3.2078,2421.0,2420.8,0.82599]
[1750514311468,0.826,2420.9,2420.8,0.82602]
[1750514312674,4.03378,2421.0,2420.9,0.82599]
[1750514312970,0.826,2420.9,2420.8,0.82599]
[1750514313279,0.82602,2420.8,2420.7,0.82603]
[1750514313473,0.82609,2420.6,2420.5,1.2851]
[1750514313679,0.82613,2420.5,2420.4,0.82614]
[1750514316882,0.82613,2420.5,2420.1,1.3959]
[1750514316883,0.82616,2420.4,2420.3,0.82617]
[1750514317274,2.13515,2420.5,2420.4,0.82616]
[1750514317981,2.13514,2420.5,2420.4,0.82616]
[1750514318480,2.5922557,2420.6,2420.1,1.3959]
[1750514318481,0.82623,2420.2,2420.1,1.3959]
[1750514318685,4.03403,2420.2,2420.1,1.3959]
[1750514319877,3.2078,2420.2,2419.7,3.2078]
[1750514320178,0.8263,2420.0,2419.9,0.82631]
[1750514320383,0.82634,2419.9,2419.8,0.82634]
[1750514320983,0.82632,2420.0,2419.9,0.82632]
[1750514321676,0.82634,2419.9,2419.8,0.82634]
[1750514321881,3.2078,2420.2,2419.8,1.3359]
[1750514322084,0.82632,2420.0,2419.9,0.82632]
[1750514323180,0.82652,2419.4,2419.2,0.82653]
[1750514323381,2.5922557,2419.3,2419.0,1.3487]
[1750514323684,2.5922557,2419.1,2418.9,3.2078]
[1750514323883,3.4188757,2419.1,2418.9,4.03447]
[1750514324283,4.71508,2419.2,2419.0,0.82664]
[1750514324480,4.71508,2419.2,2419.0,0.82661]
[1750514325083,3.2078,2419.2,2419.1,0.8266]
[1750514325277,0.82648,2419.5,2419.3,0.8265]
[1750514325987,5.8000557,2419.6,2419.2,0.82654]
[1750514326183,0.82653,2419.3,2419.2,0.82654]
[1750514326579,0.82653,2419.3,2419.1,11.01028]
[1750514326988,0.82653,2419.3,2419.1,9.65728]
[1750514327184,0.82657,2419.2,2419.1,1.3487]
[1750514327590,0.82655,2419.3,2419.1,2.1753]
[1750514327891,2.5922557,2419.4,2419.1,1.3487]
[1750514328289,0.82655,2419.3,2419.1,2.17528]
[1750514328890,0.82655,2419.3,2419.1,1.3487]
[1750514329092,3.4187857,2419.4,2419.1,2.17529]
[1750514329293,0.82653,2419.4,2419.2,0.82657]
[1750514329501,4.03426,2419.6,2419.3,0.82651]
[1750514329794,0.82647,2419.5,2419.3,0.82651]
[1750514329983,0.82647,2419.5,2419.4,0.8265]
[1750514330295,0.82647,2419.5,2419.3,0.82652]
[1750514331187,0.8265,2419.4,2419.2,2.24045]
[1750514331390,0.82653,2419.3,2419.2,2.24045]
[1750514331695,0.82657,2419.2,2419.1,9.65828]
[1750514331895,0.82656,2419.3,2419.1,9.65828]
[1750514332197,0.82657,2419.2,2419.1,9.65828]
[1750514332589,0.82656,2419.3,2419.1,9.65828]
[1750514332789,0.82656,2419.3,2419.2,0.82657]
[1750514333298,0.82657,2419.2,2419.1,1.3487]
[1750514333695,5.8000557,2419.3,2418.8,7.483]
[1750514333902,0.82668,2418.9,2418.8,7.483]
[1750514334597,0.8267,2418.8,2418.7,3.2078]
[1750514335396,3.9502557,2419.1,2418.7,3.2078]
[1750514335597,0.8267,2418.8,2418.7,3.2078]
[1750514335902,0.82674,2418.7,2418.6,8.1477]
[1750514336498,0.82674,2418.7,2418.6,0.6647]
[1750514337300,2.5922557,2418.9,2418.5,0.82681]
[1750514337301,0.82677,2418.6,2418.5,0.82681]
[1750514337801,0.82668,2418.9,2418.8,0.82669]
[1750514337996,0.82668,2418.9,2418.8,3.2078]
[1750514338403,0.82673,2418.8,2418.7,0.82674]
[1750514340901,2.5922557,2419.1,2418.5,4.5157]
[1750514341103,0.82661,2419.1,2419.0,0.8266]
[1750514341603,0.82663,2419.0,2418.9,1.3031]
[1750514341805,0.82663,2419.0,2418.9,2.12977]
[1750514342105,0.82663,2419.0,2418.9,0.6604]
[1750514344710,0.6863,2419.2,2418.9,0.6604]
[1750514344909,0.82663,2419.0,2418.9,2.19905]
[1750514345105,0.6863,2419.2,2418.9,1.3724]
[1750514345317,0.82657,2419.2,2419.1,3.2078]
[1750514345810,0.82653,2419.4,2419.3,0.82652]
[1750514346009,0.6527,2419.5,2419.2,1.3335]
[1750514346302,0.6527,2419.5,2419.4,0.8265]
[1750514346614,2.5922557,2419.9,2419.4,4.03429]
[1750514346909,0.82645,2419.6,2419.4,0.82649]
[1750514347100,0.82645,2419.6,2419.5,0.82646]
[1750514347500,0.82645,2419.6,2419.5,1.52216]
[1750514347707,0.82645,2419.6,2419.5,0.6957]
[1750514348103,2.5922557,2419.9,2419.5,1.52214]
[1750514348300,0.82641,2419.7,2419.6,0.82642]
[1750514348502,0.82643,2419.6,2419.5,2.88394]
[1750514348702,0.82642,2419.7,2419.5,2.88394]
[1750514348903,0.6527,2420.0,2419.5,2.0575]
[1750514349108,2.5922557,2420.5,2419.7,7.8660057]
[1750514349408,0.82626,2420.1,2420.0,4.03408]
[1750514349609,0.82624,2420.2,2420.1,0.82626]
[1750514350005,0.82626,2420.1,2420.0,4.03408]
[1750514350403,3.9830557,2420.5,2420.0,3.2078]
[1750514350404,0.82624,2420.2,2420.0,3.2078]
[1750514350605,0.82621,2420.3,2420.1,0.82624]
[1750514350908,2.75196,2420.6,2420.1,0.6512]
[1750514350909,0.82616,2420.4,2420.1,0.6512]
[1750514351104,0.6867,2420.6,2420.3,0.82619]
[1750514351310,0.6867,2420.6,2420.3,3.2078]
[1750514351512,7.414,2420.8,2420.5,0.82612]
[1750514351908,0.82608,2420.7,2420.5,0.82612]
[1750514352104,0.82602,2420.8,2420.7,0.82602]
[1750514352299,0.82603,2420.8,2420.6,0.82606]
[1750514352506,0.8259,2421.2,2420.7,0.6512]
[1750514352813,0.82592,2421.1,2420.9,0.82596]
[1750514353003,0.8259,2421.2,2421.0,0.82595]
[1750514353205,0.82586,2421.3,2420.8,7.413]
[1750514353407,0.6477,2421.5,2420.9,5.206]
[1750514353608,1.47351,2421.5,2421.3,0.82583]
[1750514353903,0.6477,2421.5,2421.4,0.82582]
[1750514354211,0.82576,2421.6,2421.4,0.82582]
[1750514354413,0.8258,2421.5,2421.3,0.82582]
[1750514354709,5.18733836,2421.8,2421.2,10.6208]
[1750514354914,0.82577,2421.6,2421.2,10.6208]
[1750514355109,0.82577,2421.6,2421.4,0.82581]